bitfinex-derivatives/quotes_ETHF0:USTF0_20250503
["timestamp","ask_amount","ask_price","bid_price","bid_amount"]
[1746261477267,10.96066509,1830.3,1830.0,51.20629566]
[1746261477465,10.96066509,1830.3,1830.2,4.34519059]
[1746261478173,14.67866509,1830.3,1830.2,4.34519059]
[1746261478976,3.718,1830.3,1830.2,7.78719059]
[1746261479672,4.81044,1830.3,1830.2,6.69469059]
[1746261479877,6.1913,1830.3,1830.2,3.442]
[1746261480375,6.1913,1830.3,1830.2,4.5345]
[1746261481373,7.28374,1830.3,1830.2,3.442]
[1746261481579,7.28374,1830.3,1830.0,45.10039]
[1746261481781,1.5964,1830.2,1830.1,1.09256]
[1746261481973,1.09256,1830.1,1830.0,42.4557]
[1746261482271,0.826,1830.1,1830.0,40.8]
[1746261482677,2.4524,1830.1,1830.0,41.89262]
[1746261482878,2.4524,1830.1,1830.0,1.09262]
[1746261483279,6.1704,1830.1,1830.0,1.09262]
[1746261484973,6.1704,1830.1,1830.0,4.34531059]
[1746261487082,3.718,1830.1,1830.0,4.34531059]
[1746261487281,3.718,1830.1,1830.0,5.99031059]
[1746261490681,3.72427363,1830.1,1830.0,5.99031059]
[1746261495487,3.72427363,1830.1,1830.0,1.09262]
[1746261495689,5.32997363,1830.1,1830.0,1.09262]
[1746261498793,5.32997363,1830.1,1830.0,41.89262]
[1746261499995,6.42253363,1830.1,1830.0,41.89262]
[1746261500193,6.42253363,1830.1,1830.0,1.09262]
[1746261500589,5.32997363,1830.1,1830.0,1.09262]
[1746261501292,11.26927363,1830.1,1829.6,5.09466]
[1746261501491,3.4168,1830.0,1829.7,4.34544059]
[1746261501689,1.09274,1829.8,1829.7,4.34544059]
[1746261501884,1.09274,1829.8,1829.7,1.09275]
[1746261502091,1.09274,1829.8,1829.7,4.34544059]
[1746261502393,3.718,1829.8,1829.7,4.34544059]
[1746261503191,5.4698,1829.8,1829.7,4.34544059]
[1746261503396,5.4698,1829.8,1829.7,6.08604059]
[1746261505696,6.56254,1829.8,1829.7,6.08604059]
[1746261507301,6.56254,1829.8,1829.7,4.34544059]
[1746261507898,6.56254,1829.8,1829.7,1.09275]
[1746261510099,1.0928,1829.7,1829.6,43.59263]
[1746261510300,3.5372,1829.7,1829.6,46.84532059]
[1746261511099,7.2552,1829.7,1829.6,46.84532059]
[1746261511597,7.2552,1829.7,1829.6,6.04532059]
[1746261512001,7.2552,1829.7,1829.6,4.34552059]
[1746261512593,6.1624,1829.7,1829.4,6.28079]
[1746261512897,2.5828,1829.6,1829.4,9.78751059]
[1746261513095,2.80112,1829.5,1829.4,9.78751059]
[1746261513803,2.80112,1829.5,1829.4,8.69458059]
[1746261514194,6.51912,1829.5,1829.4,9.78756059]
[1746261514500,6.51912,1829.5,1829.4,6.53487]
[1746261514795,6.51912,1829.5,1829.4,3.03087]
[1746261515202,6.51912,1829.5,1829.4,4.75157]
[1746261516904,5.4262,1829.5,1829.4,4.75157]
[1746261519002,6.51912,1829.5,1829.4,1.93789]
[1746261520206,6.51912,1829.5,1829.4,3.03087]
[1746261520407,5.4262,1829.5,1829.4,3.03087]
[1746261520803,6.51912,1829.5,1829.4,3.03087]
[1746261524906,6.51912,1829.5,1829.4,1.93789]
[1746261525103,6.51912,1829.5,1829.1,6.7118]
[1746261525104,1.09322,1829.0,1828.9,4.78112452]
[1746261525296,1.09333,1828.8,1828.7,14.49984777]
[1746261525495,4.30113,1828.8,1828.7,1.93384777]
[1746261525698,1.09339,1828.7,1828.6,1.93384777]
[1746261525911,6.18499,1828.7,1828.6,1.93384777]
[1746261526405,9.90299,1828.7,1828.6,1.93384777]
[1746261528211,11.55439,1828.7,1828.6,1.93384777]
[1746261529909,1.09357,1828.4,1828.3,1.6247]
[1746261530114,4.81157,1828.4,1828.3,1.6247]
[1746261530314,4.81157,1828.4,1828.3,4.87739059]
[1746261530718,6.39207,1828.4,1828.3,4.87739059]
[1746261539422,6.39207,1828.4,1828.3,5.97102059]
[1746261539725,4.81157,1828.4,1828.3,5.97102059]
[1746261540428,4.81157,1828.4,1828.3,4.87739059]
[1746261540831,4.81157,1828.4,1828.3,5.97102059]
[1746261541719,4.81157,1828.4,1828.3,4.87739059]
[1746261542832,4.81157,1828.4,1828.3,5.97102059]
[1746261543031,3.718,1828.4,1828.3,9.17882059]
[1746261544932,3.718,1828.4,1828.3,14.17882059]
[1746261548133,1.09334,1828.8,1828.7,1.09339]
[1746261548333,1.09334,1828.8,1828.7,4.34608059]
[1746261548929,1.09334,1828.8,1828.7,5.15508059]
[1746261549230,4.81134,1828.8,1828.7,5.15508059]
[1746261551036,3.718,1828.8,1828.7,5.15508059]
[1746261554338,1.94682,1829.2,1829.1,1.09316]
[1746261554537,1.09312,1829.2,1829.1,4.34585059]
[1746261554739,1.09312,1829.2,1829.1,1.09316]
[1746261555136,4.81112,1829.2,1829.1,2.70416]
[1746261555742,4.81112,1829.2,1829.1,5.95685059]
[1746261556032,4.81112,1829.2,1829.0,1.09317]
[1746261556236,2.82356,1829.1,1829.0,1.09317]
[1746261556944,1.7304,1829.1,1829.0,1.09317]
[1746261557145,6.54156,1829.1,1829.0,2.70417]
[1746261558040,6.54156,1829.1,1829.0,1.611]
[1746261558344,1.09328,1828.9,1828.8,46.26381]
[1746261558538,1.09328,1828.9,1828.8,0.8505]
[1746261558844,1.09333,1828.8,1828.7,7.00939]
[1746261559039,2.68083,1828.8,1828.7,3.25269059]
[1746261559242,1.5875,1828.8,1828.7,1.09339]
[1746261560242,6.39888,1828.8,1828.7,1.09339]
[1746261560637,6.39888,1828.8,1828.5,8.3804]
[1746261560638,5.3055,1828.8,1828.5,8.3804]
[1746261560942,3.49339,1828.7,1828.6,4.34614059]
[1746261561453,2.4,1828.7,1828.6,4.34614059]
[1746261561646,3.49339,1828.7,1828.6,4.34614059]
[1746261562152,7.21139,1828.7,1828.6,1.09345]
[1746261564547,6.118,1828.7,1828.6,4.34614059]
[1746261565051,7.21139,1828.7,1828.6,4.34614059]
[1746261565352,7.21139,1828.7,1828.6,1.09345]
[1746261566751,6.39889,1828.7,1828.6,4.34614059]
[1746261566943,6.39889,1828.7,1828.6,6.05224059]
[1746261568454,6.39889,1828.7,1828.6,4.95879059]
[1746261568752,1.09345,1828.6,1828.5,3.519]
[1746261568954,3.2919,1828.6,1828.5,4.61247]
[1746261569148,8.10335,1828.6,1828.5,7.86516059]
[1746261569353,7.0099,1828.6,1828.5,7.86516059]
[1746261570955,6.2038,1828.6,1828.5,7.86516059]
[1746261571254,3.718,1828.6,1828.5,10.40736059]
[1746261581159,3.52839,1828.9,1828.8,1.09333]
[1746261582053,7.24639,1828.9,1828.8,1.09333]
[1746261583660,6.1531,1828.9,1828.8,1.09333]
[1746261583856,7.24638,1828.9,1828.8,1.09333]
[1746261584458,6.1531,1828.9,1828.8,1.09333]
[1746261584956,3.718,1828.9,1828.8,7.55382059]
[1746261585163,3.718,1828.9,1828.8,11.88912059]
[1746261591067,1.7128,1829.2,1829.1,1.09316]
[1746261591565,1.7128,1829.2,1829.1,2.76436]
[1746261592065,5.4308,1829.2,1829.1,2.76436]
[1746261598864,2.45162,1829.2,1829.1,23.64385059]
[1746261599056,5.42686129,1829.5,1829.4,1.09298]
[1746261599259,5.42686129,1829.5,1829.4,11.05647059]
[1746261600064,5.42686129,1829.5,1829.4,9.96349059]
[1746261600065,3.64716679,1829.5,1829.4,9.96349059]
[1746261600466,3.64716679,1829.5,1829.4,11.65789059]
[1746261600764,3.64716679,1829.5,1829.4,12.75087059]
[1746261601162,7.36516679,1829.5,1829.4,12.75087059]
[1746261601369,7.36516679,1829.5,1829.4,11.05647059]
[1746261601670,10.67136679,1829.5,1829.4,7.80378]
[1746261601868,10.67136679,1829.5,1829.4,11.05647059]
[1746261602368,10.67136679,1829.5,1829.4,7.80378]
[1746261604365,7.0242,1829.5,1829.4,7.80378]
[1746261604670,8.11712,1829.5,1829.4,7.80378]
[1746261604868,8.11712,1829.5,1829.4,4.30078]
[1746261605063,1.09299,1829.4,1829.1,3.503]
[1746261605258,1.7281,1829.4,1829.3,1.09302]
[1746261606168,6.53908,1829.4,1829.3,1.09302]
[1746261610973,1.0931,1829.2,1829.1,3.503]
[1746261611168,8.17863,1829.4,1829.1,6.75569059]
[1746261611169,2.71078,1829.3,1829.1,6.75569059]
[1746261611373,2.7108,1829.2,1829.1,1.09316]
[1746261611568,3.5605,1829.2,1829.1,1.09316]
[1746261612067,7.2785,1829.2,1829.1,1.09316]
[1746261613973,1.09316,1829.1,1829.0,4.30097]
[1746261614270,7.42376,1829.1,1829.0,7.55366059]
[1746261615772,6.3306,1829.1,1829.0,7.55366059]
[1746261615973,7.42376,1829.1,1829.0,4.30097]
[1746261616378,7.42376,1829.1,1829.0,3.2078]
[1746261617477,1.09328,1828.9,1828.8,3.502]
[1746261617676,1.09333,1828.8,1828.7,1.09335]
[1746261618176,4.81133,1828.8,1828.7,4.34604059]
[1746261618378,4.81133,1828.8,1828.7,3.25269059]
[1746261618674,7.36263,1828.8,1828.7,3.25269059]
[1746261619577,7.36263,1828.8,1828.7,4.34608059]
[1746261619772,7.36263,1828.8,1828.7,3.25269059]
[1746261619968,7.36263,1828.8,1828.7,4.34608059]
[1746261620377,7.36263,1828.8,1828.7,3.25269059]
[1746261621176,7.36263,1828.8,1828.7,4.34608059]
[1746261625082,7.36263,1828.8,1828.7,4.34608059]
[1746261625477,7.36263,1828.8,1828.7,1.09339]
[1746261626282,1.09339,1828.7,1828.6,3.58322]
[1746261626485,2.82249,1828.7,1828.6,3.58322]
[1746261626680,2.82249,1828.7,1828.6,6.83591059]
[1746261627082,6.54049,1828.7,1828.6,6.83591059]
[1746261629388,5.4471,1828.7,1828.6,4.34611059]
[1746261629884,6.54049,1828.7,1828.6,4.34611059]
[1746261630880,6.54049,1828.7,1828.6,5.97261059]
[1746261632086,6.54049,1828.7,1828.6,1.09342]
[1746261633388,6.54049,1828.7,1828.6,2.80352]
[1746261641991,6.54049,1828.7,1828.6,6.05621059]
[1746261652200,5.4471,1828.7,1828.6,6.05621059]
[1746261653599,6.54049,1828.7,1828.6,6.05621059]
[1746261654201,5.4471,1828.7,1828.6,6.05621059]
[1746261655903,6.54049,1828.7,1828.6,6.05621059]
[1746261657805,6.54049,1828.7,1828.6,1.09342]
[1746261658406,1.09345,1828.6,1828.5,5.10157]
[1746261658599,2.72715,1828.6,1828.5,5.10157]
[1746261658801,2.72715,1828.6,1828.5,8.35426059]
[1746261659297,6.44515,1828.6,1828.5,8.35426059]
[1746261659709,5.3517,1828.6,1828.5,8.35426059]
[1746261660008,5.3517,1828.6,1828.5,10.09746059]
[1746261660305,6.44515,1828.6,1828.5,5.79619059]
[1746261660502,6.44515,1828.6,1828.5,6.88970059]
[1746261662208,1.09357,1828.4,1828.3,4.30141]
[1746261662504,4.34737,1828.5,1828.3,3.2078]
[1746261662707,4.34737,1828.5,1828.4,1.09357]
[1746261663005,4.34737,1828.5,1828.4,4.34626059]
[1746261663200,8.06537,1828.5,1828.4,4.34626059]
[1746261664303,8.06537,1828.5,1828.4,6.10186059]
[1746261666904,8.06537,1828.5,1828.3,3.2078]
[1746261666905,1.09357,1828.4,1828.3,3.2078]
[1746261667110,2.76297,1828.4,1828.3,3.25269059]
[1746261668111,6.48097,1828.4,1828.3,3.25269059]
[1746261669010,6.48097,1828.4,1828.3,4.34632059]
[1746261670510,10.12155788,1828.4,1828.3,4.34632059]
[1746261671613,10.12155788,1828.4,1828.3,3.25269059]
[1746261673106,10.12155788,1828.4,1828.3,4.96089059]
[1746261673308,10.12155788,1828.4,1828.3,3.25269059]
[1746261674710,1.09363,1828.3,1828.2,4.48565]
[1746261675098,4.81163,1828.3,1828.2,4.48565]
[1746261675299,4.81163,1828.3,1828.2,7.73834059]
[1746261676714,4.81163,1828.3,1828.2,6.64469059]
[1746261676910,4.81163,1828.3,1828.2,2.5837]
[1746261677212,1.09369,1828.2,1828.1,3.2078]
[1746261677411,2.76359,1828.2,1828.1,8.04499059]
[1746261678215,6.48159,1828.2,1828.1,8.04499059]
[1746261678601,6.48159,1828.2,1828.1,3.2078]
[1746261678808,1.09375,1828.1,1828.0,1.6607]
[1746261679015,2.76365,1828.1,1828.0,6.49789059]
[1746261679316,6.48165,1828.1,1828.0,6.49789059]
[1746261679615,6.48165,1828.1,1828.0,7.59170059]
[1746261679918,6.48165,1828.1,1828.0,3.25269059]
[1746261680211,6.48165,1828.1,1827.9,3.57987]
[1746261680212,1.09381,1828.0,1827.9,3.57987]
[1746261680511,1.09381,1828.0,1827.9,6.83256059]
[1746261680914,1.09381,1828.0,1827.9,5.73869059]
[1746261681111,6.55601,1828.0,1827.9,5.73869059]
[1746261681308,9.76381,1828.0,1827.9,5.73869059]
[1746261681612,6.55601,1828.0,1827.9,3.25269059]
[1746261682224,1.09387,1827.9,1827.8,10.59285867]
[1746261682513,1.09387,1827.9,1827.8,6.58229059]
[1746261682707,2.83807,1827.9,1827.8,6.58229059]
[1746261683113,6.55607,1827.9,1827.8,6.58229059]
[1746261691821,8.20997,1827.9,1827.8,3.3296]
[1746261692119,8.20997,1827.9,1827.8,0.85]
[1746261692418,1.09393,1827.8,1827.7,4.9418]
[1746261692618,2.77083,1827.8,1827.7,9.04559059]
[1746261693226,6.48883,1827.8,1827.7,9.04559059]
[1746261693520,6.48883,1827.8,1827.7,10.13958059]
[1746261693724,6.48883,1827.8,1827.7,9.04559059]
[1746261694322,6.48883,1827.8,1827.7,5.7929]
[1746261695415,6.48883,1827.8,1827.7,2.5851]
[1746261698525,5.3949,1827.8,1827.5,4.0236]
[1746261698726,2.71099,1827.7,1827.6,3.25269059]
[1746261698926,2.71099,1827.7,1827.6,4.97279059]
[1746261699127,6.42899,1827.7,1827.6,1.7201]
[1746261709740,6.42899,1827.7,1827.6,4.97279059]
[1746261716341,7.26599,1827.7,1827.6,4.97279059]
[1746261720045,7.26599,1827.7,1827.6,3.25269059]
[1746261722047,1.09405,1827.6,1827.5,3.358]
[1746261722938,1.09405,1827.6,1827.5,6.61069059]
[1746261723135,6.44665,1827.6,1827.5,6.61069059]
[1746261727450,4.81205,1827.6,1827.5,6.61069059]
[1746261728551,4.81205,1827.6,1827.5,7.70480059]
[1746261728749,3.718,1827.6,1827.5,12.70480059]
[1746261729151,3.64058788,1827.6,1827.5,12.70480059]
[1746261731151,3.64058788,1827.6,1827.5,7.70480059]
[1746261731948,1.09396,1827.8,1827.7,1.09399]
[1746261732149,4.81196,1827.8,1827.7,4.34668059]
[1746261732753,3.718,1827.8,1827.7,6.05938059]
[1746261734459,3.718,1827.8,1827.7,46.85938059]
[1746261737854,3.718,1827.8,1827.7,50.06718059]
[1746261741365,3.718,1827.8,1827.7,9.26718059]
[1746261744768,4.81193,1827.8,1827.7,6.05938059]
[1746261749069,1.09399,1827.7,1827.6,4.57005]
[1746261749267,2.73249,1827.7,1827.6,7.07975]
[1746261749469,2.73249,1827.7,1827.6,10.33244059]
[1746261750069,6.45049,1827.7,1827.6,10.33244059]
[1746261752167,6.45049,1827.7,1827.6,3.25269059]
[1746261753465,6.45049,1827.7,1827.6,4.34674059]
[1746261753661,6.45049,1827.7,1827.6,6.77404059]
[1746261757675,6.45049,1827.7,1827.6,4.06649059]
[1746261759279,6.45049,1827.7,1827.6,3.25269059]
[1746261761377,6.45049,1827.7,1827.6,4.34674059]
[1746261761879,6.45049,1827.7,1827.6,3.25269059]
[1746261762271,10.09107788,1827.7,1827.6,3.25269059]
[1746261764385,10.09107788,1827.7,1827.6,1.09405]
[1746261764582,10.09107788,1827.7,1827.6,4.34674059]
[1746261765878,8.45257788,1827.7,1827.6,6.92424059]
[1746261766183,4.81199,1827.7,1827.6,6.92424059]
[1746261768384,3.718,1827.7,1827.6,6.92424059]
[1746261768581,4.81199,1827.7,1827.6,6.92424059]
[1746261769491,4.81199,1827.7,1827.6,3.67155]
[1746261769686,3.718,1827.7,1827.6,6.92424059]
[1746261770878,3.718,1827.7,1827.6,10.13204059]
[1746261779590,3.718,1827.7,1827.6,13.59704059]
[1746261783493,3.718,1827.7,1827.6,10.38924059]
[1746261783792,3.718,1827.7,1827.6,13.59704059]
[1746261783991,3.718,1827.7,1827.6,10.38924059]
[1746261784181,3.718,1827.7,1827.6,13.59704059]
[1746261787093,6.44856788,1827.9,1827.8,1.09393]
[1746261787294,6.44856788,1827.9,1827.8,4.34662059]
[1746261787594,6.44856788,1827.9,1827.8,1.09393]
[1746261787792,6.44856788,1827.9,1827.8,2.72043]
[1746261787992,5.35468788,1827.9,1827.8,2.72043]
[1746261788193,9.07268788,1827.9,1827.8,2.72043]
[1746261788394,7.35858788,1827.9,1827.8,5.97312059]
[1746261788591,7.35858788,1827.9,1827.8,9.18092059]
[1746261788895,3.718,1827.9,1827.8,9.18092059]
[1746261789195,3.64058788,1828.0,1827.9,1.09387]
[1746261789392,3.64058788,1828.0,1827.9,7.65966059]
[1746261790297,7.35858788,1828.0,1827.9,7.65966059]
[1746261790497,9.05178788,1828.0,1827.9,7.65966059]
[1746261793499,5.4112,1828.0,1827.9,7.65966059]
[1746261796593,6.2173,1828.0,1827.9,7.65966059]
[1746261801690,5.4112,1828.0,1827.9,7.65966059]
[1746261801895,3.718,1828.0,1827.9,7.65966059]
[1746261802804,3.718,1828.0,1827.9,11.12366059]
[1746261803404,3.718,1828.0,1827.9,14.33146059]
[1746261812412,6.2646,1828.0,1827.9,14.33146059]
[1746261814214,6.2646,1828.0,1827.9,11.12366059]
[1746261814518,6.2646,1828.0,1827.9,14.33146059]
[1746261815113,5.4703,1828.0,1827.9,14.33146059]
[1746261823721,5.4703,1828.0,1827.9,11.12366059]
[1746261824019,5.4703,1828.0,1827.9,14.33146059]
[1746261824219,5.4703,1828.0,1827.9,11.12366059]
[1746261824522,5.4703,1828.0,1827.9,14.33146059]
[1746261825119,3.718,1828.0,1827.9,14.33146059]
[1746261828729,3.64058788,1828.2,1827.9,14.33146059]
[1746261828730,3.64058788,1828.2,1828.1,1.09375]
[1746261829018,3.64058788,1828.2,1828.1,4.34644059]
[1746261829216,7.35858788,1828.2,1828.1,4.34644059]
[1746261829417,7.35858788,1828.2,1828.1,5.18324059]
[1746261833718,7.35858788,1828.2,1828.1,6.81184059]
[1746261834622,7.35858788,1828.2,1828.1,10.01964059]
[1746261834922,3.718,1828.2,1828.1,10.01964059]
[1746261837223,3.64058788,1828.4,1828.3,1.09363]
[1746261837412,3.64058788,1828.4,1828.3,7.80832059]
[1746261838124,7.35858788,1828.4,1828.3,7.80832059]
[1746261838312,7.35858788,1828.4,1828.3,10.34612059]
[1746261839523,3.718,1828.4,1828.3,10.34612059]
[1746261839721,3.718,1828.4,1828.3,13.55392059]
[1746261840726,5.4319,1828.4,1828.3,13.55392059]
[1746261842726,6.247,1828.4,1828.3,13.55392059]
[1746261853829,6.247,1828.4,1828.3,11.01612059]
[1746261859336,6.247,1828.4,1828.3,7.76343]
[1746261859631,7.34057,1828.4,1828.3,6.6698]
[1746261859827,12.34061,1828.4,1828.3,1.09363]
[1746261860030,1.09363,1828.3,1828.2,1.09366]
[1746261860323,2.72473,1828.3,1828.2,1.09366]
[1746261861134,6.44273,1828.3,1828.2,1.09366]
[1746261861735,1.09371,1828.2,1828.1,1.09373]
[1746261861935,4.41351,1828.2,1828.1,1.09373]
[1746261862237,8.13151,1828.2,1828.1,1.09373]
[1746261862736,8.13154,1828.2,1828.0,7.7636]
[1746261862934,1.7023,1828.1,1828.0,7.7636]
[1746261863236,5.4203,1828.1,1828.0,7.7636]
[1746261863738,6.51405,1828.1,1828.0,7.7636]
[1746261864535,5.4203,1828.1,1828.0,7.7636]
[1746261865534,6.51405,1828.1,1828.0,7.7636]
[1746261866738,6.51405,1828.1,1828.0,4.5558]
[1746261867438,6.51405,1828.1,1828.0,3.462]
[1746261867941,1.09381,1828.0,1827.9,3.2078]
[1746261868142,7.23361,1828.0,1827.9,3.2078]
[1746261868842,7.23361,1828.0,1827.9,4.30163]
[1746261869638,7.23361,1828.0,1827.9,1.09383]
[1746261871246,1.09387,1827.9,1827.8,4.30169]
[1746261871448,2.5178,1827.9,1827.8,4.30169]
[1746261871635,2.5178,1827.9,1827.8,7.55438059]
[1746261872141,6.2358,1827.9,1827.8,4.34658059]
[1746261874147,7.32967,1827.9,1827.8,1.09389]
[1746261875049,6.2358,1827.9,1827.8,1.09389]
[1746261875950,6.2358,1827.9,1827.8,2.72709]
[1746261876150,6.2358,1827.9,1827.8,3.57969]
[1746261876751,6.2358,1827.9,1827.8,6.83238059]
[1746261884168,7.32967,1827.9,1827.8,6.83238059]
[1746261884368,7.32967,1827.9,1827.8,3.57969]
[1746261885471,6.2358,1827.9,1827.8,3.57969]
[1746261886064,5.3771,1827.9,1827.8,3.57969]
[1746261886671,3.718,1827.9,1827.8,3.57969]
[1746261886970,3.718,1827.9,1827.8,6.83238059]
[1746261888570,4.81187,1827.9,1827.8,6.83238059]
[1746261889270,6.41007,1827.9,1827.8,6.83238059]
[1746261890373,6.41007,1827.9,1827.8,2.72709]
[1746261891774,6.41007,1827.9,1827.8,5.97978059]
[1746261904493,1.09393,1827.8,1827.7,4.277]
[1746261904789,2.71503,1827.8,1827.7,4.277]
[1746261905093,6.43303,1827.8,1827.7,5.37099]
[1746261905891,6.43303,1827.8,1827.7,4.277]
[1746261907292,6.43303,1827.8,1827.7,3.461]
[1746261910993,12.59147184,1827.8,1827.7,3.461]
[1746261911495,1.09411,1827.5,1827.4,6.6678]
[1746261911689,1.09411,1827.5,1827.4,11.01466059]
[1746261912085,1.09411,1827.5,1827.4,12.61496059]
[1746261912290,4.81211,1827.5,1827.4,12.61496059]
[1746261913595,4.81211,1827.5,1827.4,9.40716059]
[1746261915192,5.60391,1827.5,1827.4,8.31299059]
[1746261915800,7.19371,1827.5,1827.4,8.31299059]
[1746261916995,7.19371,1827.5,1827.4,9.40716059]
[1746261928204,3.718,1827.5,1827.4,9.40716059]
[1746261940714,4.81211,1827.5,1827.4,9.40716059]
[1746261942007,3.718,1827.5,1827.4,9.40716059]
[1746261943509,4.81211,1827.5,1827.4,9.40716059]
[1746261946217,3.718,1827.5,1827.4,9.40716059]
[1746261948220,4.81211,1827.5,1827.4,9.40716059]
[1746261949218,6.49981,1827.5,1827.4,9.40716059]
[1746261949718,6.49981,1827.5,1827.4,8.31299059]
[1746261949926,6.49981,1827.5,1827.4,6.71269059]
[1746261950218,6.49981,1827.5,1827.4,7.80686059]
[1746261950622,6.49981,1827.5,1827.4,4.34686059]
[1746261952225,12.65835911,1827.5,1827.4,4.34686059]
[1746261952616,12.65835911,1827.5,1827.4,1.09417]
[1746261952919,12.65835911,1827.5,1827.4,4.34686059]
[1746261953421,12.65835911,1827.5,1827.4,3.25269059]
[1746261956923,12.65835911,1827.5,1827.4,4.34686059]
[1746261957222,12.65835911,1827.5,1827.4,3.25269059]
[1746261959524,1.09417,1827.4,1827.3,2.72499]
[1746261959720,2.83087,1827.4,1827.3,2.72499]
[1746261960019,2.83087,1827.4,1827.3,5.97768059]
[1746261960217,6.54887,1827.4,1827.3,5.97768059]
[1746261961531,5.4547,1827.4,1827.3,5.97768059]
[1746261962032,6.54887,1827.4,1827.3,5.97768059]
[1746261963436,5.4547,1827.4,1827.3,5.97768059]
[1746261963637,3.718,1827.4,1827.3,5.97768059]
[1746261964130,7.37682192,1827.4,1827.3,5.97768059]
[1746261965941,7.37682192,1827.4,1827.3,46.77768059]
[1746261966636,7.37682192,1827.4,1827.3,49.98548059]
[1746261967237,3.718,1827.4,1827.3,49.98548059]
[1746261967432,3.718,1827.4,1827.3,53.44348059]
[1746261968038,4.81217,1827.4,1827.3,53.44348059]
[1746261969841,4.81217,1827.4,1827.3,12.64348059]
[1746261970040,7.38597,1827.4,1827.3,12.64348059]
[1746261970742,11.04479192,1827.4,1827.3,12.64348059]
[1746261971237,11.04479192,1827.4,1827.3,11.01268059]
[1746261971541,11.04479192,1827.4,1827.3,7.75999]
[1746261973140,11.04479192,1827.4,1827.3,6.6658]
[1746261973339,11.04479192,1827.4,1827.3,3.458]
[1746261973537,1.09423,1827.3,1827.2,4.41975]
[1746261973746,1.09429,1827.2,1827.1,14.08871457]
[1746261973944,1.09429,1827.2,1827.1,15.18306457]
[1746261974239,1.09429,1827.2,1827.1,18.43575516]
[1746261975131,4.81229,1827.2,1827.1,18.43575516]
[1746261976934,3.718,1827.2,1827.1,20.10605516]
[1746261977540,5.3178,1827.2,1827.1,20.10605516]
[1746261978245,5.3178,1827.2,1827.1,16.89825516]
[1746261979752,3.718,1827.2,1827.1,16.89825516]
[1746261990755,3.718,1827.2,1827.1,57.69825516]
[1746261991157,3.65882192,1827.4,1827.3,1.09423]
[1746261991349,3.65882192,1827.4,1827.3,11.01072059]
[1746261991746,3.65882192,1827.4,1827.3,13.46502059]
[1746261992158,7.37682192,1827.4,1827.3,13.46502059]
[1746261992657,3.718,1827.4,1827.3,13.46502059]
[1746261993459,3.718,1827.4,1827.3,18.46502059]
[1746261994057,3.718,1827.4,1827.3,13.46502059]
[1746261994253,3.65882192,1827.5,1827.4,1.09417]
[1746261994452,3.65882192,1827.5,1827.4,5.94006059]
[1746261995155,7.37682192,1827.5,1827.4,5.94006059]
[1746261997761,3.718,1827.5,1827.4,5.94006059]
[1746261999261,3.718,1827.5,1827.4,6.73836059]
[1746262006264,3.718,1827.5,1827.4,47.53836059]
[1746262007162,3.718,1827.5,1827.4,50.74616059]
[1746262020473,3.718,1827.5,1827.4,47.49347]
[1746262020674,3.718,1827.5,1827.4,50.74616059]
[1746262021770,3.718,1827.5,1827.4,49.15296059]
[1746262021981,5.405,1827.5,1827.4,4.30197]
[1746262023178,6.49911,1827.5,1827.4,3.2078]
[1746262023480,8.17431,1827.5,1827.4,3.2078]
[1746262024679,8.17431,1827.5,1827.4,4.30197]
[1746262025378,8.17431,1827.5,1827.4,1.09417]
[1746262029085,8.17431,1827.5,1827.3,7.75802]
[1746262029086,1.09417,1827.4,1827.3,7.75802]
[1746262029288,2.78717,1827.4,1827.3,4.55022]
[1746262029786,1.693,1827.4,1827.3,4.55022]
[1746262030086,5.411,1827.4,1827.3,4.55022]
[1746262030288,6.50517,1827.4,1827.3,4.55022]
[1746262033982,3.718,1827.4,1827.3,11.01071059]
[1746262034183,3.65882192,1827.5,1827.4,1.09417]
[1746262034384,3.65882192,1827.5,1827.4,5.96116059]
[1746262038200,2.81393,1827.8,1827.7,1.09399]
[1746262038495,1.09393,1827.8,1827.7,1.09399]
[1746262038696,1.09399,1827.7,1827.6,7.75581]
[1746262038898,1.94109,1827.7,1827.6,6.6618]
[1746262039200,1.09405,1827.6,1827.5,1.09409]
[1746262039491,1.09411,1827.5,1827.4,1.09415]
[1746262039697,1.94121,1827.5,1827.3,6.6618]
[1746262039993,1.94121,1827.5,1827.4,1.09417]
[1746262040195,5.65921,1827.5,1827.4,1.09417]
[1746262047895,9.31803192,1827.5,1827.4,1.09417]
[1746262048801,9.31803192,1827.5,1827.4,3.57387]
[1746262049202,7.37682192,1827.5,1827.4,3.57387]
[1746262049397,7.37682192,1827.5,1827.4,6.82656059]
[1746262050304,3.65882192,1827.5,1827.4,6.82656059]
[1746262051303,3.65882192,1827.6,1827.5,1.09411]
[1746262051495,3.65882192,1827.6,1827.5,9.20500059]
[1746262052102,7.37682192,1827.6,1827.5,9.20500059]
[1746262054104,3.65882192,1827.6,1827.5,9.20500059]
[1746262054502,4.75271192,1827.9,1827.8,1.09393]
[1746262055198,8.47071192,1827.9,1827.8,1.09393]
[1746262055500,8.47071192,1827.9,1827.8,2.74433]
[1746262056805,10.17271192,1827.9,1827.8,2.74433]
[1746262057005,9.07882192,1827.9,1827.8,2.74433]
[1746262058800,10.17269192,1827.9,1827.8,2.74433]
[1746262059612,9.07882192,1827.9,1827.8,2.74433]
[1746262060809,10.17269192,1827.9,1827.8,5.99702059]
[1746262061811,9.07882192,1827.9,1827.8,5.99702059]
[1746262062711,10.17269192,1827.9,1827.8,5.99702059]
[1746262063211,6.51387,1827.9,1827.8,5.99702059]
[1746262063514,5.42,1827.9,1827.8,5.99702059]
[1746262064706,5.42,1827.9,1827.8,2.74433]
[1746262065011,6.51387,1827.9,1827.8,5.99702059]
[1746262065604,5.42,1827.9,1827.8,5.99702059]
[1746262066011,6.51387,1827.9,1827.8,5.99702059]
[1746262066209,5.42,1827.9,1827.8,5.99702059]
[1746262067311,3.718,1827.9,1827.8,5.99702059]
[1746262067512,3.718,1827.9,1827.8,9.20482059]